[Event "Live Chess"]
[Site "Chess.com"]
[Date "2023.05.21"]
[Round "-"]
[White "Conradical12"]
[Black "LiamBellwood"]
[Result "0-1"]
[WhiteElo "1615"]
[BlackElo "2059"]
[TimeControl "300"]
[EndTime "17:24:22 PDT"]
[Termination "LiamBellwood won by resignation"]

1. e4 {[%clk 0:04:58.8]} 1... e6 {[%clk 0:04:59.9]} 2. Nf3 {[%clk 0:04:57.7]}
2... d5 {[%clk 0:04:59]} 3. exd5 {[%clk 0:04:56.1]} 3... exd5 {[%clk 0:04:57.7]}
4. d4 {[%clk 0:04:55.7]} 4... Bd6 {[%clk 0:04:54.9]} 5. Bd3 {[%clk 0:04:54]}
5... Ne7 {[%clk 0:04:54.6]} 6. Be3 {[%clk 0:04:53.3]} 6... Bg4 {[%clk
0:04:53.9]} 7. Nbd2 {[%clk 0:04:51.1]} 7... c6 {[%clk 0:04:52.9]} 8. c3 {[%clk
0:04:50.3]} 8... Qd7 {[%clk 0:04:51.6]} 9. Qc2 {[%clk 0:04:49]} 9... Bf5 {[%clk
0:04:45.2]} 10. O-O-O {[%clk 0:04:46]} 10... Bxd3 {[%clk 0:04:38.3]} 11. Qxd3
{[%clk 0:04:45.9]} 11... Qf5 {[%clk 0:04:38.2]} 12. Qe2 {[%clk 0:04:42.6]} 12...
O-O {[%clk 0:04:35]} 13. h4 {[%clk 0:04:41.4]} 13... Re8 {[%clk 0:04:29.6]} 14.
h5 {[%clk 0:04:39.8]} 14... Qe6 {[%clk 0:04:14.8]} 15. h6 {[%clk 0:04:37.3]}
15... Nf5 {[%clk 0:04:09]} 16. Rde1 {[%clk 0:04:30.4]} 16... Nxe3 {[%clk
0:04:07.8]} 17. fxe3 {[%clk 0:04:29.1]} 17... Bf4 {[%clk 0:04:02.5]} 18. Nf1
{[%clk 0:04:14.5]} 18... Bxh6 {[%clk 0:03:53.6]} 19. Qf2 {[%clk 0:04:02.1]}
19... Nd7 {[%clk 0:03:48.6]} 20. Qg3 {[%clk 0:04:00.7]} 0-1

[Event "Live Chess"]
[Site "Chess.com"]
[Date "2023.05.21"]
[Round "-"]
[White "stevochess11"]
[Black "Man-Del-Brot"]
[Result "1-0"]
[WhiteElo "1794"]
[BlackElo "1065"]
[TimeControl "300"]
[EndTime "17:25:27 PDT"]
[Termination "stevochess11 won on time"]

1. d4 {[%clk 0:04:56.7]} 1... Nf6 {[%clk 0:04:57.7]} 2. Nf3 {[%clk 0:04:55.5]}
2... d5 {[%clk 0:04:56.4]} 3. e3 {[%clk 0:04:52.9]} 3... Nbd7 {[%clk 0:04:54]}
4. Bd3 {[%clk 0:04:50.4]} 4... c6 {[%clk 0:04:51.4]} 5. b3 {[%clk 0:04:48.2]}
5... g6 {[%clk 0:04:45.6]} 6. Bb2 {[%clk 0:04:45.9]} 6... c5 {[%clk 0:04:37.7]}
7. Nbd2 {[%clk 0:04:42.3]} 7... e6 {[%clk 0:04:22.3]} 8. O-O {[%clk 0:04:35.2]}
8... a6 {[%clk 0:04:20.5]} 9. Ne5 {[%clk 0:04:32.1]} 9... Be7 {[%clk 0:04:06.4]}
10. f4 {[%clk 0:04:00.5]} 10... b5 {[%clk 0:03:39.6]} 11. Ndf3 {[%clk
0:03:57.2]} 11... Ne4 {[%clk 0:03:35.2]} 12. Bxe4 {[%clk 0:03:52.7]} 12... dxe4
{[%clk 0:03:33.7]} 13. Ng5 {[%clk 0:03:51.6]} 13... O-O {[%clk 0:03:24.6]} 14.
Nxe4 {[%clk 0:03:36]} 14... cxd4 {[%clk 0:03:17]} 15. Bxd4 {[%clk 0:03:30.5]}
15... Bb7 {[%clk 0:03:03.2]} 16. Ng5 {[%clk 0:03:17.1]} 16... Nxe5 {[%clk
0:03:00.6]} 17. Bxe5 {[%clk 0:03:14.7]} 17... Bxg5 {[%clk 0:02:55.5]} 18. fxg5
{[%clk 0:03:11.2]} 18... Qxg5 {[%clk 0:02:54]} 19. Qe2 {[%clk 0:03:05.9]} 19...
Qxe5 {[%clk 0:02:50.4]} 20. Rad1 {[%clk 0:03:03.4]} 20... Rad8 {[%clk
0:02:48.4]} 21. Rde1 {[%clk 0:03:02.5]} 21... b4 {[%clk 0:02:43.7]} 22. e4
{[%clk 0:02:59.1]} 22... Bc6 {[%clk 0:02:42.1]} 23. Qxa6 {[%clk 0:02:55.6]}
23... Bb5 {[%clk 0:02:38.5]} 24. Qa5 {[%clk 0:02:53.3]} 24... Qb8 {[%clk
0:02:25.6]} 25. Rf3 {[%clk 0:02:42.8]} 25... Rd6 {[%clk 0:02:12.4]} 26. Qxb4
{[%clk 0:02:30.4]} 26... Rfd8 {[%clk 0:01:58.5]} 27. c4 {[%clk 0:02:12.6]} 27...
Ba6 {[%clk 0:01:28.6]} 28. Qc3 {[%clk 0:02:05.1]} 28... Rd1 {[%clk 0:01:22.5]}
29. Ref1 {[%clk 0:01:47]} 29... R8d2 {[%clk 0:01:11.6]} 30. Qf6 {[%clk
0:01:41.7]} 30... Rxf1+ {[%clk 0:01:05.2]} 31. Rxf1 {[%clk 0:01:39.4]} 31...
Qb6+ {[%clk 0:01:01.3]} 32. Kh1 {[%clk 0:01:34.2]} 32... Rd7 {[%clk 0:00:57.9]}
33. h4 {[%clk 0:01:20.8]} 33... Qd4 {[%clk 0:00:50.5]} 34. Qg5 {[%clk
0:01:12.8]} 34... Qxe4 {[%clk 0:00:35.4]} 35. h5 {[%clk 0:01:07.3]} 35... Bb7
{[%clk 0:00:19.4]} 36. hxg6 {[%clk 0:01:04.6]} 36... Qxg6 {[%clk 0:00:17.8]} 37.
Qxg6+ {[%clk 0:00:59.4]} 37... hxg6 {[%clk 0:00:16.4]} 38. Kh2 {[%clk
0:00:57.7]} 38... Rd4 {[%clk 0:00:14.8]} 39. Rc1 {[%clk 0:00:51.2]} 39... Rh4+
{[%clk 0:00:12.2]} 40. Kg3 {[%clk 0:00:50.1]} 40... Rh5 {[%clk 0:00:11]} 41. c5
{[%clk 0:00:48.2]} 41... Rg5+ {[%clk 0:00:09.6]} 42. Kf4 {[%clk 0:00:46.8]}
42... Rxg2 {[%clk 0:00:08]} 43. c6 {[%clk 0:00:45.7]} 43... Bc8 {[%clk
0:00:00.7]} 44. c7 {[%clk 0:00:44.7]} 1-0

[Event "Live Chess"]
[Site "Chess.com"]
[Date "2023.05.21"]
[Round "-"]
[White "Hussamalhaidar"]
[Black "LiamClery2020"]
[Result "0-1"]
[WhiteElo "1071"]
[BlackElo "2032"]
[TimeControl "300"]
[EndTime "17:25:51 PDT"]
[Termination "LiamClery2020 won by checkmate"]

1. b3 {[%clk 0:04:56.9]} 1... Nf6 {[%clk 0:04:59.9]} 2. Bb2 {[%clk 0:04:56.1]}
2... Nc6 {[%clk 0:04:56.5]} 3. e3 {[%clk 0:04:54.1]} 3... e5 {[%clk 0:04:55.4]}
4. Bb5 {[%clk 0:04:49.1]} 4... d6 {[%clk 0:04:54.6]} 5. d3 {[%clk 0:04:27]} 5...
Bd7 {[%clk 0:04:52.9]} 6. Nf3 {[%clk 0:04:21.4]} 6... Ne7 {[%clk 0:04:50.7]} 7.
Bxd7+ {[%clk 0:04:18.7]} 7... Qxd7 {[%clk 0:04:50.6]} 8. Nbd2 {[%clk 0:04:14.3]}
8... Ng6 {[%clk 0:04:50.1]} 9. O-O {[%clk 0:04:12]} 9... Be7 {[%clk 0:04:48.7]}
10. h3 {[%clk 0:04:09.7]} 10... O-O {[%clk 0:04:47.3]} 11. d4 {[%clk 0:04:04.7]}
11... e4 {[%clk 0:04:45.5]} 12. Ne1 {[%clk 0:03:45.5]} 12... d5 {[%clk
0:04:44.2]} 13. f4 {[%clk 0:03:36.7]} 13... exf3 {[%clk 0:04:40.6]} 14. Nexf3
{[%clk 0:03:31]} 14... Bd6 {[%clk 0:04:39.3]} 15. Ne5 {[%clk 0:03:23.6]} 15...
Qe6 {[%clk 0:04:34.9]} 16. Ndf3 {[%clk 0:03:20.1]} 16... Nd7 {[%clk 0:04:31.6]}
17. Ng5 {[%clk 0:03:10.9]} 17... Qe7 {[%clk 0:04:24.3]} 18. Ngxf7 {[%clk
0:02:56.1]} 18... Ngxe5 {[%clk 0:04:16.4]} 19. Nxd6 {[%clk 0:02:45.4]} 19...
Rxf1+ {[%clk 0:04:08.7]} 20. Qxf1 {[%clk 0:02:40.8]} 20... cxd6 {[%clk
0:04:06.5]} 21. dxe5 {[%clk 0:02:39]} 21... dxe5 {[%clk 0:04:05.5]} 22. Rd1
{[%clk 0:02:28.2]} 22... Nb6 {[%clk 0:04:01.5]} 23. a4 {[%clk 0:02:21.9]} 23...
Rf8 {[%clk 0:03:58.2]} 24. Qd3 {[%clk 0:02:11.2]} 24... Qf7 {[%clk 0:03:46]} 25.
Bxe5 {[%clk 0:02:00.9]} 25... Qf2+ {[%clk 0:03:42.9]} 26. Kh2 {[%clk 0:01:58.7]}
26... Re8 {[%clk 0:03:33]} 27. Bf4 {[%clk 0:01:42.7]} 27... Qh4 {[%clk
0:03:26.1]} 28. g3 {[%clk 0:01:32.7]} 28... Qf6 {[%clk 0:03:22.7]} 29. a5 {[%clk
0:01:27.8]} 29... Nc8 {[%clk 0:03:15.6]} 30. Qxd5+ {[%clk 0:01:22.8]} 30... Kh8
{[%clk 0:03:14.3]} 31. h4 {[%clk 0:01:06.8]} 31... Qg6 {[%clk 0:03:00.4]} 32. c4
{[%clk 0:01:01.4]} 32... Ne7 {[%clk 0:02:53.1]} 33. Qxb7 {[%clk 0:00:48.8]}
33... Qc2+ {[%clk 0:02:49.8]} 34. Kh3 {[%clk 0:00:32.8]} 34... Qxd1 {[%clk
0:02:47.3]} 35. Bg5 {[%clk 0:00:26.3]} 35... Ng6 {[%clk 0:02:32.4]} 36. Qxa7
{[%clk 0:00:18.9]} 36... Qh1+ {[%clk 0:02:30]} 37. Kg4 {[%clk 0:00:17.1]} 37...
Qe4+ {[%clk 0:02:26.9]} 38. Bf4 {[%clk 0:00:15.2]} 38... Ne5+ {[%clk 0:02:25.8]}
39. Kh3 {[%clk 0:00:12.1]} 39... Qh1# {[%clk 0:02:08.8]} 0-1

[Event "Live Chess"]
[Site "Chess.com"]
[Date "2023.05.21"]
[Round "-"]
[White "DerbyKnight"]
[Black "DaveL5678"]
[Result "1-0"]
[WhiteElo "1570"]
[BlackElo "996"]
[TimeControl "300"]
[EndTime "17:25:52 PDT"]
[Termination "DerbyKnight won by checkmate"]

1. d4 {[%clk 0:04:55.6]} 1... Nf6 {[%clk 0:04:56.5]} 2. Nf3 {[%clk 0:04:52.2]}
2... g6 {[%clk 0:04:54.1]} 3. Nc3 {[%clk 0:04:48.2]} 3... c6 {[%clk 0:04:49.4]}
4. e4 {[%clk 0:04:47]} 4... d5 {[%clk 0:04:35.1]} 5. e5 {[%clk 0:04:44.3]} 5...
Ng4 {[%clk 0:04:29.2]} 6. h3 {[%clk 0:04:40.3]} 6... Nh6 {[%clk 0:04:24.9]} 7.
Bf4 {[%clk 0:04:35.4]} 7... e6 {[%clk 0:04:11.6]} 8. Qd2 {[%clk 0:04:32.2]} 8...
Nd7 {[%clk 0:04:05.8]} 9. Bxh6 {[%clk 0:04:28.5]} 9... Bxh6 {[%clk 0:04:04]} 10.
Qxh6 {[%clk 0:04:28.4]} 10... c5 {[%clk 0:03:39.3]} 11. Qg7 {[%clk 0:04:16.7]}
11... Rf8 {[%clk 0:03:37.5]} 12. O-O-O {[%clk 0:04:08.2]} 12... cxd4 {[%clk
0:03:34.6]} 13. Rxd4 {[%clk 0:04:04.6]} 13... Qb6 {[%clk 0:03:14.2]} 14. Nb5
{[%clk 0:03:52.9]} 14... Nc5 {[%clk 0:03:01]} 15. Nd6+ {[%clk 0:03:47.8]} 15...
Ke7 {[%clk 0:02:52]} 16. Qf6+ {[%clk 0:03:32.3]} 16... Kd7 {[%clk 0:02:35.1]}
17. Bb5+ {[%clk 0:03:29.2]} 17... Kc7 {[%clk 0:02:25.8]} 18. Qe7+ {[%clk
0:03:25.7]} 18... Nd7 {[%clk 0:02:13]} 19. Rhd1 {[%clk 0:03:06.8]} 19... a6
{[%clk 0:02:06]} 20. Ba4 {[%clk 0:03:03.3]} 20... Qc5 {[%clk 0:01:49.9]} 21.
R1d3 {[%clk 0:02:56.7]} 21... b5 {[%clk 0:01:39.9]} 22. Rc3 {[%clk 0:02:48.7]}
22... Qxc3 {[%clk 0:01:32.8]} 23. bxc3 {[%clk 0:02:47.4]} 23... bxa4 {[%clk
0:01:25.7]} 24. Rxa4 {[%clk 0:02:32.8]} 24... Bb7 {[%clk 0:01:08.1]} 25. Nxb7
{[%clk 0:02:29.7]} 25... Rfb8 {[%clk 0:00:56.7]} 26. Qd6+ {[%clk 0:02:20.9]}
26... Kxb7 {[%clk 0:00:48.8]} 27. Qxd7+ {[%clk 0:02:18.6]} 27... Kb6 {[%clk
0:00:45.5]} 28. Rb4+ {[%clk 0:02:14.5]} 28... Ka5 {[%clk 0:00:38.8]} 29. Qa4#
{[%clk 0:02:11.1]} 1-0

[Event "Live Chess"]
[Site "Chess.com"]
[Date "2023.05.21"]
[Round "-"]
[White "WelshTiger"]
[Black "Long1968"]
[Result "1-0"]
[WhiteElo "2348"]
[BlackElo "1109"]
[TimeControl "300"]
[EndTime "17:26:14 PDT"]
[Termination "WelshTiger won on time"]

1. e4 {[%clk 0:04:56.8]} 1... e6 {[%clk 0:04:56.8]} 2. d4 {[%clk 0:04:55.6]}
2... d5 {[%clk 0:04:54.6]} 3. Nd2 {[%clk 0:04:53.9]} 3... Nf6 {[%clk 0:04:51.2]}
4. e5 {[%clk 0:04:52.7]} 4... Nfd7 {[%clk 0:04:48]} 5. Bd3 {[%clk 0:04:52.4]}
5... c5 {[%clk 0:04:46]} 6. c3 {[%clk 0:04:52]} 6... Qb6 {[%clk 0:04:40.7]} 7.
Ne2 {[%clk 0:04:50.7]} 7... Nc6 {[%clk 0:04:37.7]} 8. Nf3 {[%clk 0:04:49]} 8...
cxd4 {[%clk 0:04:34.9]} 9. cxd4 {[%clk 0:04:48.9]} 9... Be7 {[%clk 0:04:29.6]}
10. O-O {[%clk 0:04:46.3]} 10... f6 {[%clk 0:04:26.8]} 11. exf6 {[%clk
0:04:44.8]} 11... Nxf6 {[%clk 0:04:23]} 12. b3 {[%clk 0:04:31.6]} 12... O-O
{[%clk 0:04:16.7]} 13. Bb2 {[%clk 0:04:29.9]} 13... Bd7 {[%clk 0:04:01.5]} 14.
Rc1 {[%clk 0:04:28.3]} 14... Bd6 {[%clk 0:03:53.8]} 15. Bb1 {[%clk 0:04:27.4]}
15... Rae8 {[%clk 0:03:39]} 16. Ng3 {[%clk 0:04:25.4]} 16... e5 {[%clk
0:03:21.7]} 17. dxe5 {[%clk 0:04:21.8]} 17... Nxe5 {[%clk 0:03:17.3]} 18. Nxe5
{[%clk 0:04:15.9]} 18... Bxe5 {[%clk 0:03:13.3]} 19. Ba3 {[%clk 0:04:05.4]}
19... Rf7 {[%clk 0:02:51.5]} 20. Bc5 {[%clk 0:03:53.7]} 20... Qa5 {[%clk
0:02:20]} 21. b4 {[%clk 0:03:48.1]} 21... Qa4 {[%clk 0:02:13.5]} 22. Bc2 {[%clk
0:03:43.6]} 22... Qxa2 {[%clk 0:02:08.9]} 23. Bb3 {[%clk 0:03:43]} 23... Qa6
{[%clk 0:02:02]} 24. Re1 {[%clk 0:03:34.1]} 24... Bxg3 {[%clk 0:01:36.7]} 25.
Rxe8+ {[%clk 0:03:24.6]} 25... Bxe8 {[%clk 0:01:30]} 26. hxg3 {[%clk 0:03:24.5]}
26... Bc6 {[%clk 0:01:05.8]} 27. Qd4 {[%clk 0:03:12.7]} 27... Qe2 {[%clk
0:00:47.5]} 28. Qf4 {[%clk 0:03:08.3]} 28... Ne8 {[%clk 0:00:29.9]} 29. Qb8
{[%clk 0:02:52.8]} 29... Rxf2 {[%clk 0:00:17.9]} 30. Bxf2 {[%clk 0:02:51]} 30...
Qd2 {[%clk 0:00:03.2]} 31. Re1 {[%clk 0:02:47.5]} 1-0

[Event "Live Chess"]
[Site "Chess.com"]
[Date "2023.05.21"]
[Round "-"]
[White "romchyk1219"]
[Black "domrobson"]
[Result "0-1"]
[WhiteElo "619"]
[BlackElo "1740"]
[TimeControl "300"]
[EndTime "17:26:27 PDT"]
[Termination "domrobson won by checkmate"]

1. e4 {[%clk 0:04:58.6]} 1... e5 {[%clk 0:04:59.3]} 2. Nf3 {[%clk 0:04:54.7]}
2... Nc6 {[%clk 0:04:58.4]} 3. Bb5 {[%clk 0:04:54.1]} 3... a6 {[%clk 0:04:57.4]}
4. Ba4 {[%clk 0:04:53.4]} 4... Nf6 {[%clk 0:04:56.7]} 5. Nc3 {[%clk 0:04:51.7]}
5... b5 {[%clk 0:04:51.3]} 6. Bb3 {[%clk 0:04:50]} 6... d6 {[%clk 0:04:50.5]} 7.
O-O {[%clk 0:04:46.5]} 7... Bg4 {[%clk 0:04:49.5]} 8. h3 {[%clk 0:04:43.8]} 8...
Bh5 {[%clk 0:04:48.6]} 9. d3 {[%clk 0:04:40.7]} 9... Nd4 {[%clk 0:04:47.5]} 10.
Nxd4 {[%clk 0:04:38]} 10... Bxd1 {[%clk 0:04:45.9]} 11. Nxd1 {[%clk 0:04:36.8]}
11... exd4 {[%clk 0:04:44.8]} 12. Bg5 {[%clk 0:04:33.4]} 12... h6 {[%clk
0:04:43.3]} 13. Bh4 {[%clk 0:04:28.6]} 13... g5 {[%clk 0:04:42.3]} 14. Bg3
{[%clk 0:04:27.9]} 14... c5 {[%clk 0:04:41.3]} 15. c3 {[%clk 0:04:22.9]} 15...
dxc3 {[%clk 0:04:38.5]} 16. Nxc3 {[%clk 0:04:22.8]} 16... Bg7 {[%clk 0:04:36.1]}
17. Bc2 {[%clk 0:04:19]} 17... O-O {[%clk 0:04:34.8]} 18. Rfd1 {[%clk
0:04:04.8]} 18... Nh5 {[%clk 0:04:33.4]} 19. d4 {[%clk 0:03:58.3]} 19... Nxg3
{[%clk 0:04:31.4]} 20. fxg3 {[%clk 0:03:56.8]} 20... Bxd4+ {[%clk 0:04:30.7]}
21. Kh2 {[%clk 0:03:52.2]} 21... h5 {[%clk 0:04:27.4]} 22. Ne2 {[%clk
0:03:49.8]} 22... Be5 {[%clk 0:04:25.9]} 23. h4 {[%clk 0:03:43.6]} 23... gxh4
{[%clk 0:04:23.9]} 24. Kh3 {[%clk 0:03:41.9]} 24... hxg3 {[%clk 0:04:22.4]} 25.
Nxg3 {[%clk 0:03:40.7]} 25... Bxg3 {[%clk 0:04:20.6]} 26. Kxg3 {[%clk
0:03:40.6]} 26... Qg5+ {[%clk 0:04:19.6]} 27. Kf3 {[%clk 0:03:39.2]} 27... Qg4+
{[%clk 0:04:18.7]} 28. Ke3 {[%clk 0:03:38.5]} 28... Rae8 {[%clk 0:04:15.1]} 29.
Rxd6 {[%clk 0:03:35.2]} 29... f5 {[%clk 0:04:09.5]} 30. Rxa6 {[%clk 0:03:26]}
30... fxe4 {[%clk 0:04:08.4]} 31. Ra5 {[%clk 0:03:19.2]} 31... Qxg2 {[%clk
0:04:06.8]} 32. Rxb5 {[%clk 0:03:15.1]} 32... Qf2# {[%clk 0:04:05.7]} 0-1

[Event "Live Chess"]
[Site "Chess.com"]
[Date "2023.05.21"]
[Round "-"]
[White "Cimon"]
[Black "Biranidun"]
[Result "0-1"]
[WhiteElo "1856"]
[BlackElo "2639"]
[TimeControl "300"]
[EndTime "17:26:39 PDT"]
[Termination "Biranidun won by resignation"]

1. Nf3 {[%clk 0:04:56.4]} 1... Nf6 {[%clk 0:04:59.2]} 2. d4 {[%clk 0:04:54.9]}
2... g6 {[%clk 0:04:59.1]} 3. c4 {[%clk 0:04:53.1]} 3... Bg7 {[%clk 0:04:58.8]}
4. g3 {[%clk 0:04:51.6]} 4... O-O {[%clk 0:04:58.7]} 5. Bg2 {[%clk 0:04:50.3]}
5... d5 {[%clk 0:04:58.2]} 6. O-O {[%clk 0:04:48]} 6... dxc4 {[%clk 0:04:57.5]}
7. Qc2 {[%clk 0:04:44.4]} 7... Nfd7 {[%clk 0:04:53.5]} 8. e4 {[%clk 0:04:41]}
8... Nb6 {[%clk 0:04:52.6]} 9. Be3 {[%clk 0:04:34.2]} 9... Nc6 {[%clk
0:04:51.4]} 10. Rd1 {[%clk 0:04:29.6]} 10... Bg4 {[%clk 0:04:50.1]} 11. e5
{[%clk 0:04:17]} 11... Nb4 {[%clk 0:04:43.7]} 12. Qc3 {[%clk 0:04:09.6]} 12...
N4d5 {[%clk 0:04:42.8]} 13. Qe1 {[%clk 0:03:58.3]} 13... c6 {[%clk 0:04:40]} 14.
Bd2 {[%clk 0:03:47.3]} 14... Na4 {[%clk 0:04:29.5]} 15. Bc3 {[%clk 0:03:37.6]}
15... b5 {[%clk 0:04:27.1]} 16. a3 {[%clk 0:03:34.9]} 16... a5 {[%clk
0:04:24.5]} 17. Qe2 {[%clk 0:03:10.8]} 17... e6 {[%clk 0:04:22.2]} 18. h3 {[%clk
0:03:07.7]} 18... Bxf3 {[%clk 0:04:21.3]} 19. Bxf3 {[%clk 0:03:06.3]} 19... b4
{[%clk 0:04:20.3]} 20. axb4 {[%clk 0:03:03.7]} 20... axb4 {[%clk 0:04:20.2]} 21.
Be1 {[%clk 0:03:00.5]} 21... Qb6 {[%clk 0:04:14.4]} 22. Qxc4 {[%clk 0:02:57.3]}
22... Nxb2 {[%clk 0:04:13.5]} 23. Rxa8 {[%clk 0:02:41.4]} 23... Nxc4 {[%clk
0:04:12.3]} 24. Rxf8+ {[%clk 0:02:39.8]} 24... Bxf8 {[%clk 0:04:12.2]} 0-1

[Event "Live Chess"]
[Site "Chess.com"]
[Date "2023.05.21"]
[Round "-"]
[White "alanmike75"]
[Black "jimwad"]
[Result "1-0"]
[WhiteElo "1554"]
[BlackElo "1255"]
[TimeControl "300"]
[EndTime "17:26:53 PDT"]
[Termination "alanmike75 won by checkmate"]

1. e4 {[%clk 0:04:59.3]} 1... e5 {[%clk 0:04:58.2]} 2. Nf3 {[%clk 0:04:58.1]}
2... Nc6 {[%clk 0:04:56.8]} 3. d4 {[%clk 0:04:57]} 3... exd4 {[%clk 0:04:55.4]}
4. Nxd4 {[%clk 0:04:55.9]} 4... Nxd4 {[%clk 0:04:54.3]} 5. Qxd4 {[%clk
0:04:54.6]} 5... b6 {[%clk 0:04:53.4]} 6. Bc4 {[%clk 0:04:49.1]} 6... Bc5 {[%clk
0:04:50]} 7. Qd3 {[%clk 0:04:45.7]} 7... Qf6 {[%clk 0:04:45.7]} 8. Be3 {[%clk
0:04:43.8]} 8... Bxe3 {[%clk 0:04:34.6]} 9. Qxe3 {[%clk 0:04:40.4]} 9... Ne7
{[%clk 0:04:32.4]} 10. Nc3 {[%clk 0:04:38.2]} 10... O-O {[%clk 0:04:31.1]} 11.
O-O {[%clk 0:04:36.9]} 11... Bb7 {[%clk 0:04:29.8]} 12. Rfe1 {[%clk 0:04:24.5]}
12... Qg6 {[%clk 0:04:24.2]} 13. Qg3 {[%clk 0:04:20.1]} 13... Qxg3 {[%clk
0:04:22.2]} 14. hxg3 {[%clk 0:04:19.1]} 14... Ng6 {[%clk 0:04:20.4]} 15. f3
{[%clk 0:04:15.9]} 15... d6 {[%clk 0:04:17.2]} 16. Kf2 {[%clk 0:04:13.9]} 16...
Ne5 {[%clk 0:04:14.5]} 17. Be2 {[%clk 0:04:11.4]} 17... h6 {[%clk 0:03:55.7]}
18. Rad1 {[%clk 0:04:09.2]} 18... a6 {[%clk 0:03:50]} 19. f4 {[%clk 0:03:59.8]}
19... Nd7 {[%clk 0:03:45.6]} 20. Bf3 {[%clk 0:03:58.4]} 20... Nc5 {[%clk
0:03:39.6]} 21. b4 {[%clk 0:03:52.8]} 21... Nd7 {[%clk 0:03:32.8]} 22. a3 {[%clk
0:03:50.6]} 22... f5 {[%clk 0:03:20.8]} 23. exf5 {[%clk 0:03:40.5]} 23... Bxf3
{[%clk 0:03:19]} 24. Kxf3 {[%clk 0:03:38.3]} 24... Rxf5 {[%clk 0:03:17.6]} 25.
Re7 {[%clk 0:03:35.5]} 25... Rf7 {[%clk 0:03:14.6]} 26. Rde1 {[%clk 0:03:34.1]}
26... Rxe7 {[%clk 0:03:11.7]} 27. Rxe7 {[%clk 0:03:32.5]} 27... Rd8 {[%clk
0:03:06]} 28. Nd5 {[%clk 0:03:30.3]} 28... c6 {[%clk 0:02:59.1]} 29. Ne3 {[%clk
0:03:24]} 29... Nf6 {[%clk 0:02:54.7]} 30. Ra7 {[%clk 0:03:09.2]} 30... a5
{[%clk 0:02:52.5]} 31. bxa5 {[%clk 0:03:07.7]} 31... bxa5 {[%clk 0:02:51.7]} 32.
Rxa5 {[%clk 0:03:06]} 32... c5 {[%clk 0:02:49.3]} 33. c4 {[%clk 0:03:01.2]}
33... Kf7 {[%clk 0:02:45.1]} 34. Ra7+ {[%clk 0:02:49.3]} 34... Nd7 {[%clk
0:02:42.9]} 35. g4 {[%clk 0:02:46.8]} 35... g6 {[%clk 0:02:39.7]} 36. Nd5 {[%clk
0:02:44.3]} 36... Ke6 {[%clk 0:02:31.3]} 37. g3 {[%clk 0:02:41.1]} 37... Nf8
{[%clk 0:02:24.8]} 38. Re7# {[%clk 0:02:36.6]} 1-0

[Event "Live Chess"]
[Site "Chess.com"]
[Date "2023.05.21"]
[Round "-"]
[White "NAZRIZ1977"]
[Black "LanceMaster23"]
[Result "0-1"]
[WhiteElo "1996"]
[BlackElo "1901"]
[TimeControl "300"]
[EndTime "17:26:53 PDT"]
[Termination "LanceMaster23 won by resignation"]

1. d4 {[%clk 0:04:55.8]} 1... Nf6 {[%clk 0:04:59.2]} 2. Nc3 {[%clk 0:04:55.2]}
2... d5 {[%clk 0:04:58.5]} 3. Bf4 {[%clk 0:04:54.5]} 3... Bf5 {[%clk 0:04:58.1]}
4. e3 {[%clk 0:04:53.4]} 4... e6 {[%clk 0:04:57.6]} 5. f3 {[%clk 0:04:52]} 5...
h6 {[%clk 0:04:55.8]} 6. g4 {[%clk 0:04:50.3]} 6... Bg6 {[%clk 0:04:54.3]} 7. h4
{[%clk 0:04:48.2]} 7... Bd6 {[%clk 0:04:46.3]} 8. Nge2 {[%clk 0:04:45.8]} 8...
c6 {[%clk 0:04:44]} 9. Qd2 {[%clk 0:04:30.8]} 9... Qe7 {[%clk 0:04:42.3]} 10.
O-O-O {[%clk 0:04:26.2]} 10... Nbd7 {[%clk 0:04:41.4]} 11. Bxd6 {[%clk
0:04:22.3]} 11... Qxd6 {[%clk 0:04:40.3]} 12. Nf4 {[%clk 0:04:22.2]} 12... Nf8
{[%clk 0:04:07.5]} 13. Bd3 {[%clk 0:04:22.1]} 13... Bxd3 {[%clk 0:04:05.5]} 14.
cxd3 {[%clk 0:04:20.4]} 14... O-O-O {[%clk 0:03:58]} 15. g5 {[%clk 0:04:15.6]}
15... N6d7 {[%clk 0:03:38.9]} 16. Kb1 {[%clk 0:04:09.8]} 16... e5 {[%clk
0:03:33.5]} 17. dxe5 {[%clk 0:04:08.1]} 17... Nxe5 {[%clk 0:03:33.4]} 18. Qe1
{[%clk 0:04:01.1]} 18... Nxf3 {[%clk 0:03:21.7]} 19. Qf2 {[%clk 0:03:59.6]}
19... hxg5 {[%clk 0:03:16.9]} 20. hxg5 {[%clk 0:03:56.2]} 20... Rxh1 {[%clk
0:03:13.5]} 21. Rxh1 {[%clk 0:03:55.2]} 21... Nxg5 {[%clk 0:03:11.2]} 0-1